bitfinex/quotes_BTCUSD_20230114
["timestamp","ask_amount","ask_price","bid_price","bid_amount"]
[1673728312169,0.01486396,20807.0,20806.0,2.43106819]
[1673728312415,0.01486396,20807.0,20806.0,2.13106819]
[1673728312660,0.01486396,20807.0,20806.0,2.91169819]
[1673728312904,0.01486396,20807.0,20806.0,3.15286131]
[1673728313156,0.01486396,20807.0,20806.0,2.91169819]
[1673728313667,0.01486396,20807.0,20806.0,2.55177412]
[1673728314159,0.01486396,20807.0,20806.0,2.91169819]
[1673728314372,0.01486396,20807.0,20806.0,2.91164469]
[1673728314622,0.01486396,20807.0,20806.0,2.91163566]
[1673728315135,0.01486396,20807.0,20806.0,2.62375894]
[1673728315398,0.01476941,20807.0,20806.0,2.62375894]
[1673728315901,0.01476941,20807.0,20806.0,2.31774152]
[1673728316144,0.01476941,20807.0,20806.0,2.62375894]
[1673728316630,0.01476941,20807.0,20806.0,2.02987621]
[1673728316888,0.01476941,20807.0,20806.0,2.62375894]
[1673728318102,0.01476941,20807.0,20806.0,2.91163079]
[1673728318573,0.01476941,20807.0,20806.0,2.62375894]
[1673728319870,0.01476941,20807.0,20806.0,2.91166229]
[1673728320386,0.01476941,20807.0,20806.0,2.61166229]
[1673728320635,0.01476941,20807.0,20806.0,2.62375894]
[1673728322323,0.01476941,20807.0,20806.0,2.26383487]
[1673728322597,0.01476941,20807.0,20806.0,2.6238079]
[1673728322839,0.01476941,20807.0,20806.0,2.26383487]
[1673728323368,0.01476941,20807.0,20806.0,2.74103656]
[1673728325561,0.01476941,20807.0,20806.0,3.17207896]
[1673728325817,0.01476941,20807.0,20806.0,3.58193428]
[1673728326064,0.01476941,20807.0,20806.0,2.74103656]
[1673728329751,0.01476941,20807.0,20806.0,3.1010389]
[1673728330270,0.01476941,20807.0,20806.0,2.62041649]
[1673728330522,0.01476941,20807.0,20806.0,2.26040656]
[1673728331036,0.01476941,20807.0,20806.0,3.88917292]
[1673728331292,0.01476941,20807.0,20806.0,4.29858617]
[1673728332027,0.01476941,20807.0,20806.0,4.49138617]
[1673728333269,0.01476941,20807.0,20806.0,3.92699221]
[1673728333516,0.01476941,20807.0,20806.0,4.49138617]
[1673728333766,0.01476941,20807.0,20806.0,3.92699221]
[1673728333997,0.01476941,20807.0,20806.0,4.49138617]
[1673728334238,0.003,20807.0,20806.0,3.92699221]
[1673728334482,0.003,20807.0,20806.0,4.49138617]
[1673728335724,0.003,20807.0,20806.0,3.89750344]
[1673728335983,0.00293905,20807.0,20806.0,3.89750344]
[1673728336231,0.00293905,20807.0,20806.0,4.49138617]
[1673728337173,0.00293905,20807.0,20806.0,3.89750344]
[1673728337601,0.00293905,20807.0,20806.0,3.92699221]
[1673728337831,0.00293905,20807.0,20806.0,4.49138617]
[1673728338336,0.00293905,20807.0,20806.0,3.92699221]
[1673728338814,0.00293905,20807.0,20806.0,4.49138617]
[1673728339759,0.00293905,20807.0,20806.0,3.81159221]
[1673728342471,0.00293905,20807.0,20806.0,4.37598617]
[1673728342990,0.00293905,20807.0,20806.0,3.81159221]
[1673728344937,0.00101798,20807.0,20806.0,3.81159221]
[1673728345177,0.00101798,20807.0,20806.0,3.91193935]
[1673728345420,0.00101798,20807.0,20806.0,4.37633331]
[1673728346710,0.00101798,20807.0,20806.0,3.94529091]
[1673728347443,0.00101798,20807.0,20806.0,4.37705955]
[1673728347695,0.00023403,20807.0,20806.0,4.04529091]
[1673728348450,0.00023403,20807.0,20806.0,3.94529091]
[1673728348698,0.00023403,20807.0,20806.0,4.04529091]
[1673728349632,4.03e-06,20807.0,20806.0,4.04529091]
[1673728349855,4.03e-06,20807.0,20806.0,4.79559732]
[1673728350094,4.03e-06,20807.0,20806.0,4.16069091]
[1673728350342,4.03e-06,20807.0,20806.0,4.79822122]
[1673728351094,4.03e-06,20807.0,20806.0,4.79808437]
[1673728352571,4.03e-06,20807.0,20806.0,4.06069091]
[1673728353632,4.03e-06,20807.0,20806.0,3.28246855]
[1673728353849,4.03e-06,20807.0,20806.0,2.44103656]
[1673728355570,4.03e-06,20807.0,20806.0,2.74103656]
[1673728357271,4.03e-06,20807.0,20806.0,3.58310884]
[1673728357765,4.03e-06,20807.0,20806.0,2.74103656]
[1673728358768,4.03e-06,20807.0,20806.0,3.58315527]
[1673728359264,0.11040403,20810.0,20806.0,3.58315527]
[1673728359494,0.11040403,20810.0,20809.0,0.35982193]
[1673728360016,0.11040403,20810.0,20809.0,0.63051407]
[1673728360739,0.11240403,20810.0,20809.0,0.77051407]
[1673728361288,0.11240403,20810.0,20809.0,0.91444285]
[1673728361511,0.11240403,20810.0,20809.0,0.6265853]
[1673728361752,0.11240403,20810.0,20809.0,0.77053324]
[1673728362541,0.11240403,20810.0,20809.0,0.4998411]
[1673728362789,0.11240403,20810.0,20809.0,0.28394794]
[1673728364590,0.11240403,20810.0,20809.0,0.14]
[1673728365542,0.11240403,20810.0,20809.0,0.28394794]
[1673728367009,0.09740403,20810.0,20809.0,0.28394794]
[1673728367259,0.09740403,20810.0,20809.0,0.14]
[1673728367573,0.09740403,20810.0,20809.0,0.28394794]
[1673728369214,0.09740403,20810.0,20809.0,0.14]
[1673728369933,0.09740403,20810.0,20809.0,0.28394794]
[1673728370456,0.09740403,20810.0,20809.0,1.06514918]
[1673728371238,0.09740403,20810.0,20809.0,0.92120124]
[1673728371493,0.09740403,20810.0,20809.0,1.22113985]
[1673728371755,0.09740403,20810.0,20809.0,0.92113985]
[1673728372251,0.002,20810.0,20809.0,0.92113985]
[1673728373006,0.002,20810.0,20809.0,1.06511075]
[1673728373289,0.002,20810.0,20809.0,0.92113985]
[1673728373545,0.002,20810.0,20809.0,1.06510999]
[1673728374085,0.002,20810.0,20809.0,0.79103104]
[1673728376350,0.002,20810.0,20809.0,0.28390875]
[1673728376590,0.002,20810.0,20809.0,0.13993861]
[1673728378913,0.002,20810.0,20809.0,0.62049961]
[1673728379126,0.002,20810.0,20809.0,0.76446975]
[1673728379616,0.002,20810.0,20809.0,1.08838624]
[1673728379868,0.002,20810.0,20809.0,1.7848404]
[1673728380371,0.002,20810.0,20809.0,1.56894724]
[1673728380873,0.002,20810.0,20809.0,1.08838624]
[1673728381414,0.002,20810.0,20809.0,1.3042794]
[1673728381683,0.002,20810.0,20809.0,1.58382149]
[1673728382441,0.002,20810.0,20809.0,1.3042794]
[1673728382964,0.002,20810.0,20809.0,1.08838624]
[1673728387644,0.002,20810.0,20809.0,1.3042794]
[1673728388086,0.002,20810.0,20809.0,1.58352794]
[1673728388573,0.002,20810.0,20809.0,2.32798863]
[1673728388821,0.002,20810.0,20809.0,1.9681667]
[1673728389365,0.002,20810.0,20809.0,2.32798863]
[1673728390388,0.002,20810.0,20809.0,2.04013108]
[1673728390910,0.002,20810.0,20809.0,2.86999133]
[1673728391169,0.002,20810.0,20809.0,3.15786227]
[1673728391685,0.002,20810.0,20809.0,2.2761086]
[1673728391925,0.002,20810.0,20809.0,2.30986905]
[1673728392170,0.002,20810.0,20809.0,2.59774038]
[1673728392389,0.002,20810.0,20809.0,2.90375178]
[1673728392674,0.00193579,20810.0,20809.0,2.90375178]
[1673728393185,0.00193579,20810.0,20809.0,2.63401381]
[1673728393712,0.00193579,20810.0,20809.0,2.54295309]
[1673728394206,0.00193579,20810.0,20809.0,2.90283608]
[1673728394455,0.00193579,20810.0,20809.0,2.54295309]
[1673728394707,0.00193579,20810.0,20809.0,2.8768256]
[1673728396204,0.00193579,20810.0,20809.0,2.28294287]
[1673728396452,0.00193579,20810.0,20809.0,2.8768256]
[1673728397172,0.00193579,20810.0,20809.0,3.1647392]
[1673728398348,0.00193579,20810.0,20809.0,2.57085647]
[1673728398600,0.00193579,20810.0,20809.0,3.1647392]
[1673728400963,0.00193579,20810.0,20809.0,3.43048753]
[1673728401218,0.00061254,20810.0,20809.0,3.96488753]
[1673728401473,0.00061254,20810.0,20809.0,4.81399114]
[1673728402006,2.54e-06,20810.0,20809.0,4.81399114]
[1673728402251,2.54e-06,20810.0,20809.0,4.49751954]
[1673728402508,0.00256702,20815.0,20809.0,4.78901028]
[1673728402766,0.00256702,20815.0,20813.0,0.3594871]
[1673728403035,0.00256702,20815.0,20814.0,1.63449]
[1673728403280,0.00256702,20815.0,20814.0,1.94499356]
[1673728404060,0.00256702,20815.0,20814.0,2.11169169]
[1673728404313,0.00256702,20815.0,20814.0,2.74989024]
[1673728404561,0.00256702,20815.0,20814.0,3.45807904]
[1673728404816,0.00256702,20815.0,20814.0,3.66438678]
[1673728405318,0.00256702,20815.0,20814.0,4.02387388]
[1673728405824,0.00875007,20816.0,20814.0,4.02387388]
[1673728406076,0.00875007,20816.0,20815.0,1.48508311]
[1673728406344,0.00875007,20816.0,20815.0,2.08005538]
[1673728406582,0.00875007,20816.0,20815.0,2.94089938]
[1673728406823,0.00875007,20816.0,20815.0,2.37650542]
[1673728407072,0.00875007,20816.0,20815.0,2.34733696]
[1673728407339,0.00875007,20816.0,20815.0,2.0376183]
[1673728407340,0.00375007,20816.0,20815.0,2.0376183]
[1673728408316,0.00375007,20816.0,20815.0,1.78704569]
[1673728408656,0.00375007,20816.0,20815.0,2.35298996]
[1673728409646,0.00375007,20816.0,20815.0,2.56822116]
[1673728409870,0.00375007,20816.0,20815.0,2.84782845]
[1673728410122,0.00375007,20816.0,20815.0,2.35298996]
[1673728411612,0.00375007,20816.0,20815.0,2.94687269]
[1673728411859,0.00375007,20816.0,20815.0,2.78172712]
[1673728412318,0.0111232,20818.0,20815.0,2.94657171]
[1673728412583,0.0111232,20818.0,20816.0,0.7192108]
[1673728412861,0.0111232,20818.0,20817.0,0.95757769]
[1673728413348,0.0111232,20818.0,20817.0,1.28220982]
[1673728413852,0.0071232,20818.0,20817.0,1.28220982]
[1673728414361,0.0081232,20818.0,20817.0,1.28520982]
[1673728414608,0.0081232,20818.0,20817.0,0.80483382]
[1673728415096,0.0031232,20818.0,20817.0,0.80483382]
[1673728416337,0.0031232,20818.0,20817.0,1.04483382]
[1673728416840,0.0031232,20818.0,20817.0,1.52520982]
[1673728418604,0.0031232,20818.0,20817.0,1.04800813]
[1673728420572,0.0031232,20818.0,20817.0,1.76810813]
[1673728421590,0.0031232,20818.0,20817.0,2.36199086]
[1673728422370,0.0031232,20818.0,20817.0,1.76810813]
[1673728423119,0.0031232,20818.0,20817.0,2.36199086]
[1673728423634,0.0031232,20818.0,20817.0,2.03735873]
[1673728423880,0.0031232,20818.0,20817.0,2.60448715]
[1673728424378,0.0031232,20818.0,20817.0,2.33735873]
[1673728424644,0.0031232,20818.0,20817.0,2.64514688]
[1673728425146,0.0031232,20818.0,20817.0,2.34514688]
[1673728425398,0.0031232,20818.0,20817.0,2.82552288]
[1673728425650,0.0031232,20818.0,20817.0,2.34514688]
[1673728425901,0.0031232,20818.0,20817.0,2.05126415]
[1673728426156,0.0031232,20818.0,20817.0,2.34514688]
[1673728426654,0.0031232,20818.0,20817.0,1.75126415]
[1673728428156,0.0031232,20818.0,20817.0,2.34514688]
[1673728428919,0.0031232,20818.0,20817.0,3.29493642]
[1673728430507,0.0031232,20818.0,20817.0,3.57928924]
[1673728431186,0.0031232,20818.0,20817.0,3.29493642]
[1673728431442,0.0031232,20818.0,20817.0,3.54459287]
[1673728431938,0.0031232,20818.0,20817.0,3.29493642]
[1673728432186,0.0031232,20818.0,20817.0,3.54561076]
[1673728432697,0.0031232,20818.0,20817.0,3.71664173]
[1673728432948,0.0031232,20818.0,20817.0,3.71709279]
[1673728434181,0.0011232,20818.0,20817.0,3.85736821]
[1673728434460,0.0011232,20818.0,20817.0,3.99736821]
[1673728434675,0.0011232,20818.0,20817.0,3.85409279]
[1673728434956,0.0011232,20818.0,20817.0,3.86259279]
[1673728435223,0.0011232,20818.0,20817.0,3.86259091]
[1673728435484,0.0011232,20818.0,20817.0,3.30043642]
[1673728435731,0.0011232,20818.0,20817.0,3.43943642]
[1673728436007,0.0011232,20818.0,20817.0,3.58271184]
[1673728436265,0.00035919,20818.0,20817.0,4.54240326]
[1673728436524,0.00035919,20818.0,20817.0,5.01729036]
[1673728436765,0.00035919,20818.0,20817.0,4.72970068]
[1673728437045,0.00035919,20818.0,20817.0,5.01665086]
[1673728437338,0.00035919,20818.0,20817.0,4.72970068]
[1673728438020,0.00035919,20818.0,20817.0,4.37021358]
[1673728438273,0.00035919,20818.0,20817.0,5.0161609]
[1673728439069,0.00035919,20818.0,20817.0,4.72906105]
[1673728440076,0.00035919,20818.0,20817.0,4.7290498]
[1673728440318,0.00035919,20818.0,20817.0,4.37021358]
[1673728441561,0.00035919,20818.0,20817.0,3.54782457]
[1673728441814,0.00035919,20818.0,20817.0,4.18257836]
[1673728442067,0.00035919,20818.0,20817.0,4.32628436]
[1673728442330,0.00035919,20818.0,20817.0,4.05310221]
[1673728442598,0.00035919,20818.0,20817.0,4.18900279]
[1673728442824,0.00035919,20818.0,20817.0,4.48494989]
[1673728443074,0.00035919,20818.0,20817.0,4.66423389]
[1673728443632,0.00035919,20818.0,20817.0,4.62847115]
[1673728444105,0.00035919,20818.0,20817.0,4.48485585]
[1673728444361,0.00035919,20818.0,20817.0,4.26920615]
[1673728445656,0.00035919,20818.0,20817.0,4.48487785]
[1673728446422,0.00035919,20818.0,20817.0,4.00237231]
[1673728446655,0.00035919,20818.0,20817.0,4.31237081]
[1673728447462,0.00035919,20818.0,20817.0,4.52804008]
[1673728449485,0.00035919,20818.0,20817.0,4.22804008]
[1673728449738,0.00035919,20818.0,20817.0,4.52804008]
[1673728451837,0.00035919,20818.0,20817.0,4.31237081]
[1673728452302,0.00035919,20818.0,20817.0,4.26855616]
[1673728453300,0.00035919,20818.0,20817.0,4.24800362]
[1673728453554,0.00035919,20818.0,20817.0,4.4637033]
[1673728453805,0.00035919,20818.0,20817.0,4.24800362]
[1673728454539,0.00035919,20818.0,20817.0,4.60726862]
[1673728454789,0.00035919,20818.0,20817.0,4.24800362]
[1673728455035,0.00035919,20818.0,20817.0,4.36163731]
[1673728455290,0.00035919,20818.0,20817.0,4.61577991]
[1673728455539,0.00035919,20818.0,20817.0,4.36163731]
[1673728456051,0.00035919,20818.0,20817.0,4.66708913]
[1673728456301,0.00035919,20818.0,20817.0,4.62668045]
[1673728456563,0.00035919,20818.0,20817.0,4.36163731]
[1673728456816,0.00035919,20818.0,20817.0,4.65082715]
[1673728457065,0.00035919,20818.0,20817.0,4.29156215]
[1673728457324,0.00035919,20818.0,20817.0,2.95910523]
[1673728457576,0.11455919,20818.0,20817.0,2.12600504]
[1673728457850,0.11455919,20818.0,20817.0,1.98217257]
[1673728458595,0.43490419,20818.0,20817.0,1.98217257]
[1673728459362,0.11455919,20818.0,20817.0,0.379]
[1673728459628,2.4599687,20818.0,20814.0,0.14383247]
[1673728459893,0.2308,20815.0,20814.0,0.32498339]
[1673728460186,1.031567,20815.0,20814.0,0.32498339]
[1673728460966,1.031567,20815.0,20812.0,0.95345738]
[1673728460967,1.511989,20815.0,20813.0,0.14383247]
[1673728461213,0.960844,20815.0,20814.0,0.028173]
[1673728461504,1.511952,20815.0,20814.0,0.028173]
[1673728461789,1.530952,20815.0,20814.0,0.032173]
[1673728462317,1.622952,20815.0,20814.0,0.037173]
[1673728464899,1.14253,20815.0,20814.0,0.037173]
[1673728466416,0.111,20815.0,20814.0,0.95769681]
[1673728466667,0.111,20815.0,20814.0,1.25769681]
[1673728466931,0.111,20815.0,20814.0,1.46935381]
[1673728467186,0.111,20815.0,20814.0,1.25769681]
[1673728467429,0.111,20815.0,20814.0,2.21858681]
[1673728467680,0.111,20815.0,20814.0,2.43024381]
[1673728468219,0.25928299,20818.0,20814.0,1.82736108]
[1673728468476,0.013,20815.0,20814.0,2.12867168]
[1673728468722,0.013,20815.0,20814.0,1.93794573]
[1673728468971,0.25928299,20818.0,20814.0,1.93794573]
[1673728468972,0.25928299,20818.0,20814.0,1.500717]
[1673728469225,0.013,20815.0,20814.0,1.53478895]
[1673728469474,0.013,20815.0,20814.0,1.59155347]
[1673728469732,0.25928299,20818.0,20814.0,2.23390916]
[1673728469979,0.25928299,20818.0,20815.0,0.3]
[1673728470229,0.27228299,20818.0,20816.0,0.59388273]
[1673728471008,0.25928299,20818.0,20816.0,0.59388273]
[1673728471746,0.26628299,20818.0,20816.0,0.64688273]
[1673728472670,3.04051353,20824.0,20817.0,0.30919991]
[1673728472921,0.1154,20820.0,20818.0,0.19072595]
[1673728473186,0.435708,20819.0,20817.0,0.30919991]
[1673728473448,0.1147,20818.0,20817.0,0.30919991]
[1673728473945,0.2292,20818.0,20817.0,0.30919991]
[1673728474205,0.1154,20820.0,20817.0,0.480376]
[1673728474454,0.1154,20820.0,20817.0,1.208076]
[1673728474694,0.1154,20820.0,20817.0,1.211076]
[1673728475189,0.1154,20820.0,20817.0,1.53593607]
[1673728475434,0.1154,20820.0,20818.0,0.33337565]
[1673728475737,0.1314,20820.0,20818.0,0.33337565]
[1673728477151,0.1154,20820.0,20818.0,0.33337565]
[1673728477400,0.2094,20820.0,20818.0,0.93425838]
[1673728477902,0.2094,20820.0,20819.0,0.29709503]
[1673728478657,0.529708,20820.0,20819.0,0.29709503]
[1673728479152,0.435708,20820.0,20819.0,0.29709503]
[1673728479920,0.1154,20820.0,20817.0,1.80193573]
[1673728480178,0.1154,20820.0,20819.0,0.58337]
[1673728480179,0.2364,20820.0,20819.0,0.58337]
[1673728480431,0.2364,20820.0,20819.0,0.894962]
[1673728480691,0.1154,20823.0,20819.0,0.67737]
[1673728480968,0.1154,20823.0,20821.0,0.59388273]
[1673728481199,0.1154,20823.0,20821.0,0.78460868]
[1673728481453,0.1154,20823.0,20821.0,0.59388273]
[1673728482465,0.121,20823.0,20821.0,0.64888273]
[1673728482703,0.121,20823.0,20822.0,0.6626]
[1673728482942,0.121,20823.0,20822.0,0.97918342]
[1673728483672,0.115,20823.0,20822.0,0.97918342]
[1673728483903,0.137,20823.0,20822.0,0.98218342]
[1673728487968,0.137,20823.0,20822.0,0.98209355]
[1673728488987,0.572508,20823.0,20822.0,0.66551013]
[1673728490199,0.457508,20823.0,20822.0,0.66551013]
[1673728491454,0.457508,20823.0,20822.0,0.67001013]
[1673728493400,0.937746,20823.0,20822.0,0.67001013]
[1673728495137,0.457508,20823.0,20822.0,0.67001013]
[1673728495939,0.1372,20823.0,20822.0,0.93662475]
[1673728496688,0.457508,20823.0,20822.0,0.93662475]
[1673728497195,0.1372,20823.0,20822.0,0.93662475]
[1673728501791,0.1372,20823.0,20822.0,0.93638275]
[1673728502304,0.372,20823.0,20822.0,0.93638275]
[1673728502831,0.371333,20823.0,20822.0,0.93638275]
[1673728504343,0.371333,20823.0,20822.0,1.53026548]
[1673728505396,0.371333,20823.0,20822.0,1.52576548]
[1673728505651,0.371333,20823.0,20822.0,0.66526813]
[1673728505975,1.22484032,20823.0,20822.0,0.66526813]
[1673728506198,2.02538632,20823.0,20822.0,0.003]
[1673728508045,2.24027728,20823.0,20822.0,0.003]
[1673728509764,2.02538632,20823.0,20822.0,0.003]
[1673728510006,1.882117,20823.0,20822.0,0.003]
[1673728510748,1.882117,20823.0,20822.0,0.59688273]
[1673728511005,1.882117,20823.0,20822.0,1.26268273]
[1673728511528,2.02538632,20823.0,20822.0,1.26268273]
[1673728511772,2.02538632,20823.0,20822.0,0.6688]
[1673728513241,2.24027728,20823.0,20822.0,0.6688]
[1673728514576,2.02538632,20823.0,20822.0,0.6688]
[1673728516094,2.24027728,20823.0,20822.0,0.6688]
[1673728516527,2.02538632,20823.0,20822.0,0.6688]
[1673728516779,2.24027728,20823.0,20822.0,0.6688]
[1673728519250,2.09700796,20823.0,20822.0,0.6688]
[1673728519499,1.76029008,20823.0,20822.0,0.6688]
[1673728519755,1.54539912,20823.0,20822.0,0.6688]
[1673728520030,1.22509112,20823.0,20822.0,0.6688]
[1673728520297,1.54539912,20823.0,20822.0,0.6688]
[1673728520790,0.74485312,20823.0,20822.0,0.6688]
[1673728521045,0.601333,20823.0,20822.0,0.6688]
[1673728521299,0.921641,20823.0,20822.0,0.6688]
[1673728521801,0.601333,20823.0,20822.0,0.6688]
[1673728522040,0.921641,20823.0,20822.0,0.6688]
[1673728522309,1.06516112,20823.0,20822.0,0.6688]
[1673728522817,1.06516112,20823.0,20822.0,0.90667658]
[1673728523045,0.921641,20823.0,20822.0,0.90667658]
[1673728523293,0.601333,20823.0,20822.0,0.90667658]
[1673728523779,0.601333,20823.0,20822.0,1.4065152]
[1673728523780,0.371333,20823.0,20822.0,1.4065152]
[1673728524040,0.371333,20823.0,20822.0,1.8688289]
[1673728524294,0.371333,20823.0,20822.0,3.43435818]
[1673728524544,0.371333,20823.0,20822.0,3.2051132]
[1673728524793,0.371333,20823.0,20822.0,3.17009468]
[1673728525042,0.371333,20823.0,20822.0,2.57621195]
[1673728525320,0.021333,20823.0,20822.0,3.56341913]
[1673728525577,0.021333,20823.0,20822.0,5.01049456]
[1673728525832,0.021333,20823.0,20822.0,4.79471]
[1673728526341,0.01220616,20825.0,20822.0,4.79171]
[1673728526607,0.01220616,20825.0,20824.0,0.3308]
[1673728526839,0.01220616,20825.0,20824.0,2.97974134]
[1673728527094,0.01220616,20825.0,20824.0,3.20387586]
[1673728527368,0.01220616,20825.0,20824.0,2.98824134]
[1673728527881,0.02420616,20825.0,20824.0,3.05524134]
[1673728528656,0.02420616,20825.0,20824.0,3.64912407]
[1673728529150,0.02420616,20825.0,20824.0,3.41580551]
[1673728529400,0.02420616,20825.0,20824.0,2.54934442]
[1673728529651,0.02412229,20825.0,20824.0,2.54934442]
[1673728531165,0.02412229,20825.0,20824.0,2.84934442]
[1673728531662,0.02412229,20825.0,20824.0,2.54934442]
[1673728531929,0.02412229,20825.0,20824.0,2.25546169]
[1673728532190,0.02412229,20825.0,20824.0,2.54934442]
[1673728532440,0.02412229,20825.0,20824.0,2.84934442]
[1673728532688,0.02412229,20825.0,20824.0,2.54934442]
[1673728532936,0.05274813,20825.0,20824.0,2.79619942]
[1673728533448,0.05268153,20825.0,20824.0,2.79619942]
[1673728534668,0.05268153,20825.0,20824.0,2.84934442]
[1673728534914,0.05268153,20825.0,20824.0,2.84324732]
[1673728535673,0.05268153,20825.0,20824.0,2.36303232]
[1673728536169,0.05268153,20825.0,20824.0,2.06912942]
[1673728536419,0.05268153,20825.0,20824.0,2.3703409]
[1673728537170,0.05268153,20825.0,20824.0,2.36485421]
[1673728537926,0.05268153,20825.0,20824.0,2.15332421]
[1673728538434,0.05268153,20825.0,20824.0,2.36485121]
[1673728539591,0.05268153,20825.0,20824.0,2.06363973]
[1673728539846,0.05268153,20825.0,20824.0,2.36363973]
[1673728540626,0.05268153,20825.0,20824.0,2.3944784]
[1673728540877,0.05268153,20825.0,20824.0,1.80059567]
[1673728541126,0.05268153,20825.0,20824.0,1.469757]
[1673728541411,0.05268153,20825.0,20824.0,1.25823]
[1673728541633,0.05268153,20825.0,20824.0,2.36363973]
[1673728541883,0.05268153,20825.0,20824.0,2.91966303]
[1673728542156,0.05268153,20825.0,20824.0,2.36363973]
[1673728542925,0.05268153,20825.0,20824.0,2.84934142]
[1673728543456,0.05268153,20825.0,20824.0,3.40536472]
[1673728544748,0.05268153,20825.0,20824.0,2.84934142]
[1673728544995,0.05268153,20825.0,20824.0,2.81148199]
[1673728545576,0.05268153,20825.0,20824.0,3.40536472]
[1673728545819,0.00819959,20825.0,20824.0,3.73619924]
[1673728546072,0.00819959,20825.0,20824.0,3.87995559]
[1673728546332,0.00819959,20825.0,20824.0,3.66432107]
[1673728547365,0.00819959,20825.0,20824.0,2.96454142]
[1673728547883,0.00819959,20825.0,20824.0,3.52056472]
[1673728548148,0.00819959,20825.0,20824.0,3.66432107]
[1673728548889,0.00819959,20825.0,20824.0,3.87995559]
[1673728549390,0.00819959,20825.0,20824.0,3.66432107]
[1673728550165,0.00819959,20825.0,20824.0,4.19263441]
[1673728550422,0.00819959,20825.0,20824.0,3.76455559]
[1673728550667,0.00819959,20825.0,20824.0,3.54892107]
[1673728550910,0.00819959,20825.0,20824.0,4.07611213]
[1673728551732,0.00819959,20825.0,20824.0,4.21986988]
[1673728554079,0.00819959,20825.0,20824.0,4.00423536]
[1673728554564,0.00819959,20825.0,20824.0,4.36350036]
[1673728554791,0.00819959,20825.0,20824.0,4.00423536]
[1673728554982,0.00819959,20825.0,20824.0,4.21939892]
[1673728555373,0.00819959,20825.0,20824.0,3.93188482]
[1673728556045,0.00819959,20825.0,20824.0,4.07598626]
[1673728558033,0.00819959,20825.0,20824.0,4.3629217]
[1673728558291,0.00819959,20825.0,20824.0,4.07598626]
[1673728559781,0.00819959,20825.0,20824.0,3.81672126]
[1673728560278,0.00104742,20825.0,20824.0,4.69543474]
[1673728560507,0.00104742,20825.0,20824.0,3.81672126]
[1673728560753,0.00104742,20825.0,20824.0,4.80919755]
[1673728561007,7.42e-06,20825.0,20824.0,4.80919755]
[1673728561502,7.42e-06,20825.0,20824.0,5.5006193]
[1673728561992,7.42e-06,20825.0,20824.0,5.3164193]
[1673728562976,7.42e-06,20825.0,20824.0,5.2164193]
[1673728564474,7.42e-06,20825.0,20824.0,4.78571303]
[1673728565777,7.42e-06,20825.0,20824.0,5.47831303]
[1673728566035,0.00796997,20828.0,20825.0,0.1]
[1673728566311,0.00796997,20828.0,20827.0,1.16710635]
[1673728566559,0.00796997,20828.0,20827.0,3.89735892]
[1673728566843,0.00796997,20828.0,20827.0,4.10884692]
[1673728567054,0.00796997,20828.0,20827.0,4.62994692]
[1673728567303,0.01396997,20828.0,20827.0,4.62994692]
[1673728567560,0.00796997,20828.0,20827.0,4.62994692]
[1673728567808,0.09696997,20828.0,20827.0,4.63794692]
[1673728568567,0.09696997,20828.0,20827.0,4.11684692]
[1673728569063,0.09696997,20828.0,20827.0,4.01684692]
[1673728569342,0.00796997,20828.0,20827.0,4.00884692]
[1673728569591,0.01396997,20828.0,20827.0,4.06784692]
[1673728569850,0.01396997,20828.0,20827.0,4.00884692]
[1673728570093,0.01996997,20828.0,20827.0,3.70874226]
[1673728570342,0.01996997,20828.0,20827.0,3.80874226]
[1673728570643,0.01996997,20828.0,20827.0,3.8085082]
[1673728572634,0.04212933,20828.0,20827.0,3.8085082]
[1673728572891,0.02507775,20828.0,20827.0,4.24890453]
[1673728573140,0.02507775,20828.0,20827.0,4.67983012]
[1673728573627,0.02507775,20828.0,20827.0,5.48743012]
[1673728573885,0.02507775,20828.0,20827.0,4.36490453]
[1673728574400,0.02507775,20828.0,20827.0,4.79583012]
[1673728575403,0.02507775,20828.0,20827.0,5.35523012]
[1673728575691,0.02507775,20828.0,20827.0,4.4839082]
[1673728575952,0.015115,20834.0,20828.0,0.02506]
[1673728576203,0.015115,20834.0,20831.0,0.47720169]
[1673728576451,0.015115,20834.0,20831.0,1.94128042]
[1673728576704,0.015115,20834.0,20831.0,3.67547156]
[1673728577016,0.015115,20834.0,20831.0,5.22103222]
[1673728577274,0.01956824,20832.0,20831.0,5.22103222]
[1673728577516,0.01556824,20832.0,20831.0,4.66500892]
[1673728577778,0.01556824,20832.0,20831.0,5.45087919]
[1673728578321,0.01556824,20832.0,20831.0,5.16402052]
[1673728578581,0.01856824,20832.0,20831.0,5.30202052]
[1673728578833,0.02156824,20832.0,20831.0,5.44002052]
[1673728580323,0.02156824,20832.0,20831.0,5.32462052]
[1673728582154,0.02156824,20832.0,20831.0,5.61132066]
[1673728582370,0.02156824,20832.0,20831.0,4.96586326]
[1673728582863,0.00451613,20832.0,20831.0,4.96586326]
[1673728583131,0.00451613,20832.0,20831.0,11.96586326]
[1673728583688,0.00451613,20832.0,20831.0,12.32426271]
[1673728584444,0.00451613,20832.0,20831.0,11.96586326]
[1673728584707,0.00451613,20832.0,20831.0,11.73031356]
[1673728584963,0.00451613,20832.0,20831.0,12.01698606]
[1673728585458,0.00451613,20832.0,20831.0,12.61086879]
[1673728585710,0.00451613,20832.0,20831.0,12.32419629]
[1673728586011,0.00451613,20832.0,20831.0,12.36525106]
[1673728586250,0.0068874,20834.0,20833.0,1.440021]
[1673728586498,0.0068874,20834.0,20833.0,3.50629422]
[1673728586750,0.0068874,20834.0,20833.0,3.90629422]
[1673728587001,0.0068874,20834.0,20833.0,4.16500299]
[1673728587752,0.0098874,20834.0,20833.0,4.83726694]
[1673728589289,0.0098874,20834.0,20833.0,4.4512266]
[1673728589547,0.0098874,20834.0,20833.0,3.30627006]
[1673728590055,0.0098874,20834.0,20833.0,2.83215699]
[1673728590311,0.0098874,20834.0,20833.0,3.26589858]
[1673728590563,0.0098874,20834.0,20833.0,2.56661053]
[1673728590811,0.0098874,20834.0,20833.0,2.55811053]
[1673728592056,0.0098874,20834.0,20833.0,2.08660353]
[1673728592816,0.0098874,20834.0,20833.0,1.31611969]
[1673728593067,0.8360714,20834.0,20833.0,0.139]
[1673728593838,0.2406874,20834.0,20833.0,0.139]
[1673728594113,0.2376874,20834.0,20832.0,0.32999431]
[1673728594358,0.1144,20833.0,20832.0,0.32999431]
[1673728595393,0.1144,20833.0,20832.0,0.36899431]
[1673728595649,0.1144,20833.0,20832.0,0.32999431]
[1673728595900,0.1154,20833.0,20832.0,0.36899431]
[1673728598449,0.1154,20833.0,20832.0,0.039]
[1673728603754,0.1154,20833.0,20832.0,0.28455924]
[1673728605541,0.1154,20833.0,20832.0,0.76176093]
[1673728605799,0.001,20833.0,20832.0,0.77026093]
[1673728606301,0.001,20833.0,20832.0,1.25029093]